bitfinex-derivatives/quotes_BTCF0:USTF0_20241221
["timestamp","ask_amount","ask_price","bid_price","bid_amount"]
[1734790993063,0.051242,97610.0,97607.0,0.23306681]
[1734790993452,0.00831939,97609.0,97607.0,0.23306681]
[1734790993653,0.051242,97610.0,97607.0,0.18182381]
[1734790993966,0.051238,97617.0,97611.0,0.051241]
[1734790994162,0.00831894,97616.0,97611.0,0.051241]
[1734790994464,0.00831894,97615.0,97611.0,0.051241]
[1734790994670,0.00832187,97614.0,97611.0,0.051241]
[1734790994857,0.00832187,97613.0,97611.0,0.051241]
[1734790995063,0.051239,97616.0,97611.0,0.051241]
[1734790995262,0.051239,97615.0,97611.0,0.051241]
[1734790995567,0.055239,97615.0,97602.0,0.01039157]
[1734790995765,0.062239,97615.0,97599.0,0.29962381]
[1734790995968,0.10054912,97610.0,97599.0,0.29962381]
[1734790996266,0.10054912,97610.0,97601.0,0.18182381]
[1734790996463,0.10054912,97610.0,97609.0,0.051242]
[1734790997560,0.051243,97608.0,97601.0,0.18182381]
[1734790998271,0.001,97615.0,97613.0,0.05124]
[1734790998570,0.00831607,97614.0,97613.0,0.05124]
[1734790998974,0.3608,97620.0,97617.0,0.051238]
[1734790999173,0.00831604,97619.0,97617.0,0.051238]
[1734790999468,0.412037,97620.0,97617.0,0.051238]
[1734790999469,0.00831413,97618.0,97617.0,0.051238]
[1734790999874,0.00831429,97618.0,97617.0,0.051238]
[1734791000264,0.05955229,97618.0,97611.0,0.051241]
[1734791000464,0.00831429,97617.0,97609.0,0.18182381]
[1734791000660,0.3608,97620.0,97607.0,0.24231175]
[1734791000661,0.00831429,97616.0,97607.0,0.24231175]
[1734791000973,0.3608,97620.0,97607.0,0.24231175]
[1734791000974,0.051243,97609.0,97607.0,0.24231175]
[1734791001163,0.00831429,97608.0,97607.0,0.24231175]
[1734791001773,0.00831429,97608.0,97597.0,0.19214868]
[1734791001970,0.051247,97600.0,97597.0,0.18184749]
[1734791002469,0.00830142,97599.0,97597.0,0.18184749]
[1734791002770,0.00830142,97598.0,97597.0,0.18184749]
[1734791003367,0.00830142,97598.0,97596.0,0.23309649]
[1734791003568,0.00830142,97597.0,97596.0,0.23309649]
[1734791004380,0.00830142,97597.0,97596.0,0.06152053]
[1734791004573,0.051246,97602.0,97596.0,0.06152053]
[1734791004775,0.051248,97598.0,97592.0,0.24231175]
[1734791005082,0.051248,97598.0,97597.0,0.001]
[1734791005267,0.05957268,97598.0,97597.0,0.001]
[1734791005672,0.051249,97596.0,97595.0,0.0933583]
[1734791005981,0.05957368,97596.0,97595.0,0.0933583]
[1734791006177,0.05957368,97596.0,97585.0,0.30118123]
[1734791006178,0.051251,97593.0,97585.0,0.30118123]
[1734791006377,0.412054,97586.0,97585.0,0.27408216]
[1734791006577,0.412054,97586.0,97571.0,9.9e-05]
[1734791006578,0.051261,97574.0,97572.0,0.24272455]
[1734791006880,0.00832468,97573.0,97572.0,0.24272455]
[1734791007886,0.00832468,97573.0,97571.0,9.9e-05]
[1734791008176,0.001,97573.0,97572.0,0.001]
[1734791008371,0.0082989,97585.0,97572.0,0.001]
[1734791008578,0.0082989,97584.0,97572.0,0.001]
[1734791008778,0.0082989,97583.0,97582.0,0.051256]
[1734791009580,0.00831016,97583.0,97574.0,0.051261]
[1734791009773,0.3608,97586.0,97573.0,0.0591]
[1734791010078,0.00831158,97585.0,97574.0,0.0154]
[1734791010286,0.00831158,97584.0,97582.0,0.051256]
[1734791010477,0.3608,97586.0,97582.0,0.051256]
[1734791010677,0.00831117,97585.0,97583.0,0.051255]
[1734791010886,0.0083077,97584.0,97583.0,0.051255]
[1734791012485,0.0093077,97584.0,97583.0,0.051255]
[1734791013487,0.0093077,97584.0,97583.0,0.053255]
[1734791015001,0.0093077,97584.0,97583.0,0.002]
[1734791016680,0.0092911,97584.0,97583.0,0.002]
[1734791017185,0.00928698,97584.0,97583.0,0.002]
[1734791017387,0.3608,97586.0,97585.0,0.051255]
[1734791017577,0.00153761,97595.0,97594.0,0.05125]
[1734791017777,0.0098249,97595.0,97594.0,0.05125]
[1734791017987,0.00153761,97595.0,97594.0,0.05125]
[1734791018181,0.00983764,97595.0,97594.0,0.05125]
[1734791018383,0.00153761,97595.0,97594.0,0.05125]
[1734791020386,0.00983939,97595.0,97594.0,0.05125]
[1734791020590,0.00983939,97595.0,97594.0,0.05225]
[1734791021373,0.00983939,97595.0,97594.0,0.001]
[1734791021780,0.00830178,97595.0,97594.0,0.001]
[1734791025886,0.00829747,97595.0,97594.0,0.001]
[1734791027680,0.36909747,97595.0,97594.0,0.001]
[1734791027889,0.051261,97574.0,97573.0,0.3608]
[1734791028193,0.05955847,97574.0,97573.0,0.3608]
[1734791028588,0.051262,97572.0,97571.0,9.9e-05]
[1734791028895,0.05955947,97572.0,97571.0,9.9e-05]
[1734791029692,0.05955947,97572.0,97571.0,0.002099]
[1734791029900,0.06055947,97572.0,97571.0,0.002099]
[1734791031300,0.06155947,97572.0,97571.0,0.003099]
[1734791033191,0.42235947,97572.0,97571.0,0.003099]
[1734791033402,0.37109747,97572.0,97550.0,0.0544]
[1734791033702,0.051273,97551.0,97550.0,0.0544]
[1734791033909,0.05957047,97551.0,97550.0,0.0544]
[1734791034398,0.05969913,97551.0,97550.0,0.0544]
[1734791034798,0.06069913,97551.0,97550.0,0.0554]
[1734791035886,0.06169913,97551.0,97550.0,0.001]
[1734791036097,0.42249913,97551.0,97550.0,0.001]
[1734791036301,0.051278,97541.0,97533.0,0.1113]
[1734791036499,0.05960513,97541.0,97533.0,0.1113]
[1734791036890,0.00832713,97541.0,97533.0,0.1113]
[1734791037095,0.051282,97534.0,97533.0,0.1113]
[1734791037299,0.051282,97534.0,97533.0,0.056]
[1734791038192,0.052282,97534.0,97533.0,0.056]
[1734791039197,0.10054912,97543.0,97533.0,0.056]
[1734791039390,0.001,97534.0,97533.0,0.056]
[1734791039990,0.052282,97534.0,97533.0,0.056]
[1734791040286,0.06058947,97534.0,97533.0,0.056]
[1734791040701,0.06058873,97534.0,97533.0,0.056]
[1734791041098,0.05958815,97534.0,97533.0,0.056]
[1734791041302,0.051282,97534.0,97533.0,0.0535]
[1734791041896,0.052282,97534.0,97533.0,0.0535]
[1734791042497,0.053282,97534.0,97533.0,0.0535]
[1734791043291,0.002099,97534.0,97521.0,0.36233774]
[1734791043492,0.051287,97523.0,97521.0,0.00153774]
[1734791044512,0.051287,97523.0,97521.0,0.00253774]
[1734791045014,0.051287,97523.0,97521.0,0.001]
[1734791045196,9.9e-05,97522.0,97511.0,0.00012769]
[1734791045400,0.051293,97512.0,97511.0,0.00012769]
[1734791048003,0.053293,97512.0,97511.0,0.00012769]
[1734791050302,0.051299,97501.0,97500.0,0.1]
[1734791050901,0.051306,97487.0,97486.0,0.1137]
[1734791051099,0.412106,97487.0,97486.0,0.0566]
[1734791051304,0.41222215,97487.0,97473.0,0.1069]
[1734791051501,0.41222215,97487.0,97473.0,0.1595]
[1734791051700,0.41222215,97487.0,97479.0,0.05131]
[1734791051901,0.41222215,97487.0,97473.0,0.1595]
[1734791052304,0.41222215,97487.0,97480.0,0.05131]
[1734791052606,0.41222215,97487.0,97473.0,0.1595]
[1734791052607,0.41222215,97487.0,97482.0,0.051309]
[1734791052810,0.051303,97494.0,97486.0,0.3608]
[1734791053001,0.10054912,97500.0,97486.0,0.3608]
[1734791053201,0.051306,97487.0,97483.0,0.051308]
[1734791053406,0.052306,97487.0,97482.0,0.01016678]
[1734791053597,0.053306,97487.0,97482.0,0.01016678]
[1734791053800,0.00010296,97486.0,97480.0,0.3608]
[1734791053998,0.001,97494.0,97480.0,0.3608]
[1734791054207,0.051306,97487.0,97475.0,0.3608]
[1734791054511,0.051306,97487.0,97480.0,0.05131]
[1734791054696,0.052307,97487.0,97485.0,0.05284547]
[1734791054900,0.001,97486.0,97485.0,0.05284547]
[1734791056007,0.001,97486.0,97485.0,0.00153847]
[1734791056402,0.051307,97487.0,97485.0,0.00153847]
[1734791056608,0.052307,97487.0,97485.0,0.00153847]
[1734791057114,0.053307,97487.0,97485.0,0.00153847]
[1734791057514,0.001,97486.0,97485.0,0.00253847]
[1734791058012,0.001,97486.0,97485.0,0.36333847]
[1734791058410,0.001,97486.0,97485.0,0.00253847]
[1734791058912,0.002,97486.0,97485.0,0.00253847]
[1734791059307,0.001,97486.0,97485.0,0.36233847]
[1734791060611,0.001,97486.0,97485.0,0.00153847]
[1734791060612,0.002,97486.0,97485.0,0.00153847]
[1734791062415,0.3628,97486.0,97485.0,0.00153847]
[1734791063205,0.3710799,97486.0,97485.0,0.00153847]
[1734791064415,0.3638801,97486.0,97485.0,0.00153847]
[1734791064610,0.37218009,97486.0,97485.0,0.00153847]
[1734791065021,0.37218009,97486.0,97467.0,0.01002289]
[1734791065022,0.37245504,97486.0,97449.0,0.3608]
[1734791065202,0.051316,97468.0,97467.0,0.0522]
[1734791066111,0.05267105,97468.0,97467.0,0.0522]
[1734791066314,0.05367105,97468.0,97467.0,0.0522]
[1734791066510,0.051313,97474.0,97467.0,0.3563362]
[1734791066717,0.051313,97474.0,97473.0,0.412114]
[1734791067108,0.051313,97474.0,97473.0,0.3608]
[1734791067305,0.05962379,97474.0,97473.0,0.3608]
[1734791068115,0.05962379,97474.0,97471.0,0.1598]
[1734791068116,0.00931079,97474.0,97471.0,0.1598]
[1734791068322,0.05962479,97473.0,97471.0,0.1598]
[1734791068530,0.00831984,97472.0,97471.0,0.1598]
[1734791069314,0.051314,97473.0,97471.0,0.1608]
[1734791069517,0.00832187,97472.0,97471.0,0.1608]
[1734791069811,0.00832187,97472.0,97471.0,0.49372708]
[1734791070014,0.00932187,97472.0,97471.0,0.49472708]
[1734791070223,0.00932187,97472.0,97471.0,0.38792708]
[1734791070405,0.01032187,97472.0,97471.0,0.38792708]
[1734791074512,0.01032187,97472.0,97471.0,0.33492708]
[1734791075811,0.00932187,97472.0,97471.0,0.33392708]
[1734791076016,0.01032187,97472.0,97471.0,0.33392708]
[1734791076412,0.01032187,97472.0,97471.0,0.32287159]
[1734791076613,0.01032187,97472.0,97471.0,0.29849159]
[1734791077323,0.01032187,97472.0,97471.0,0.24529276]
[1734791077528,0.00932187,97472.0,97471.0,0.24429276]
[1734791077715,0.00932187,97472.0,97471.0,0.24529276]
[1734791078428,0.00832187,97472.0,97471.0,0.24529276]
[1734791078732,0.00832187,97472.0,97471.0,0.001]
[1734791080822,0.0082994,97472.0,97471.0,0.001]
[1734791081719,0.0082994,97472.0,97471.0,0.413115]
[1734791082225,0.0082994,97472.0,97471.0,0.001]
[1734791082226,0.0596134,97472.0,97471.0,0.001]
[1734791084822,0.0596134,97472.0,97471.0,0.24513417]
[1734791085133,0.4204134,97472.0,97471.0,0.24513417]
[1734791085635,0.4305383,97472.0,97471.0,0.24513417]
[1734791086024,0.4305383,97472.0,97471.0,0.001]
[1734791087026,0.4305373,97472.0,97471.0,0.001]
[1734791088739,0.43054416,97472.0,97471.0,0.001]
[1734791091823,0.4222389,97472.0,97471.0,0.001]
[1734791093233,0.43054825,97472.0,97471.0,0.001]
[1734791095937,0.43055597,97472.0,97471.0,0.001]
[1734791097227,0.43055597,97472.0,97456.0,0.24413417]
[1734791097228,0.051321,97460.0,97456.0,0.24413417]
[1734791097428,0.05963807,97459.0,97456.0,0.24413417]
[1734791097623,0.00831707,97458.0,97455.0,0.29545717]
[1734791097823,0.05963907,97457.0,97455.0,0.29545717]
[1734791098035,0.00832149,97456.0,97455.0,0.29545717]
[1734791099038,0.051322,97457.0,97455.0,0.29545717]
[1734791099241,0.10054912,97466.0,97455.0,0.24413417]
[1734791099533,0.052321,97460.0,97458.0,0.051321]
[1734791099939,0.051321,97460.0,97458.0,0.051321]
[1734791101438,0.051321,97460.0,97459.0,0.24413417]
[1734791102235,0.052321,97460.0,97459.0,0.24413417]
[1734791102636,0.052321,97460.0,97458.0,0.24513417]
[1734791103032,0.052321,97460.0,97458.0,0.24413417]
[1734791103243,0.051321,97460.0,97459.0,0.001]
[1734791103545,0.052321,97460.0,97459.0,0.001]
[1734791103941,0.001,97460.0,97458.0,0.001]
[1734791104243,0.051321,97459.0,97458.0,0.001]
[1734791105737,0.051321,97459.0,97457.0,0.24413417]
[1734791106533,0.051321,97459.0,97458.0,0.001]
[1734791106933,0.052321,97459.0,97458.0,0.001]
[1734791108242,0.01484662,97459.0,97452.0,0.24413417]
[1734791108447,0.412124,97453.0,97452.0,0.24413417]
[1734791108746,0.051329,97443.0,97442.0,0.05227482]
[1734791108937,0.42597562,97443.0,97442.0,0.05227482]
[1734791109540,0.051331,97441.0,97440.0,0.24413417]
[1734791109748,0.051335,97433.0,97432.0,0.30534302]
[1734791109956,0.051339,97425.0,97412.0,0.0484]
[1734791110135,0.42598562,97425.0,97412.0,0.0484]
[1734791110643,0.05134,97424.0,97418.0,0.3608]
[1734791110845,0.01384662,97423.0,97422.0,0.051341]
[1734791111148,0.02246764,97423.0,97422.0,0.051341]
[1734791111338,0.00862102,97423.0,97418.0,0.37123493]
[1734791111539,0.00862102,97422.0,97420.0,0.051342]
[1734791111841,0.00862102,97421.0,97420.0,0.051342]
[1734791112244,0.00863039,97421.0,97420.0,0.051342]
[1734791113249,0.051345,97413.0,97412.0,0.0484]
[1734791113937,0.051341,97421.0,97412.0,0.0484]
[1734791114242,0.00863206,97420.0,97412.0,0.099746]
[1734791114446,0.3608,97413.0,97392.0,0.2734]
[1734791114639,0.051349,97406.0,97402.0,0.047]
[1734791114835,0.05998106,97406.0,97402.0,0.047]
[1734791115243,0.051351,97403.0,97402.0,0.047]
[1734791115439,0.05998306,97403.0,97402.0,0.047]
[1734791115748,0.051363,97379.0,97375.0,0.047]
[1734791115947,0.05999506,97379.0,97375.0,0.047]
[1734791116843,0.00963206,97379.0,97377.0,0.051364]
[1734791117245,0.00863284,97390.0,97389.0,0.051358]
[1734791117447,0.1233053,97395.0,97389.0,0.051358]
[1734791117638,0.00863115,97394.0,97390.0,0.0469]
[1734791117847,0.12274529,97395.0,97390.0,0.0469]
[1734791118342,0.051357,97391.0,97390.0,0.0469]
[1734791118755,0.00863369,97398.0,97396.0,0.051354]
[1734791118945,8.24e-05,97403.0,97399.0,0.051353]
[1734791119146,0.01041127,97403.0,97399.0,0.051353]
[1734791119348,8.24e-05,97403.0,97396.0,0.3608]
[1734791119536,0.051353,97399.0,97396.0,0.3608]
[1734791119746,0.051354,97397.0,97396.0,0.3608]
[1734791119955,0.051363,97380.0,97379.0,0.3608]
[1734791120749,0.051363,97380.0,97379.0,0.4092]
[1734791120946,0.051363,97380.0,97379.0,0.0484]
[1734791121652,0.05136,97386.0,97381.0,0.051362]
[1734791121853,0.051357,97392.0,97379.0,0.0484]
[1734791122151,0.3608,97395.0,97391.0,0.051357]
[1734791122346,0.3608,97395.0,97392.0,0.0487]
[1734791122544,0.051355,97394.0,97392.0,0.0487]
[1734791123646,0.054355,97394.0,97392.0,0.0487]
[1734791124247,0.060355,97394.0,97392.0,0.0487]
[1734791125057,0.057355,97394.0,97392.0,0.0497]
[1734791125645,0.051355,97394.0,97392.0,0.0497]
[1734791125956,0.052355,97394.0,97392.0,0.0487]
[1734791126151,0.051358,97388.0,97387.0,0.3608]
[1734791128150,0.051358,97388.0,97387.0,0.3618]
[1734791128850,0.00858068,97399.0,97387.0,0.3618]
[1734791129043,0.051355,97395.0,97390.0,0.051357]
[1734791129242,0.00858068,97399.0,97390.0,0.051357]
[1734791129447,0.051358,97389.0,97387.0,0.3608]
[1734791129648,0.051358,97389.0,97387.0,0.412159]
[1734791130860,0.052358,97389.0,97387.0,0.3608]
[1734791131250,0.053358,97389.0,97387.0,0.3608]
[1734791131647,0.002,97389.0,97388.0,0.051358]
[1734791132155,0.001,97389.0,97387.0,0.3608]
[1734791132363,0.051358,97388.0,97387.0,0.3608]
[1734791132850,0.05995708,97388.0,97387.0,0.3608]
[1734791133759,0.06095708,97388.0,97387.0,0.3608]
[1734791134261,0.051363,97380.0,97379.0,0.0484]
[1734791135255,0.0599713,97380.0,97379.0,0.0484]
[1734791135653,0.05999342,97380.0,97379.0,0.0484]
[1734791136058,0.05999342,97380.0,97379.0,0.0494]
[1734791136757,0.00863042,97380.0,97379.0,0.0494]
[1734791138161,0.02247034,97380.0,97379.0,0.100763]
[1734791138661,0.02247034,97380.0,97379.0,0.099763]
[1734791138847,0.03432612,97380.0,97379.0,0.100763]
[1734791139053,0.051361,97383.0,97379.0,0.100763]
[1734791139054,0.051361,97383.0,97381.0,0.051362]
[1734791139560,0.051363,97380.0,97379.0,0.0494]
[1734791140062,0.3608,97385.0,97379.0,0.0494]
[1734791140367,0.41216,97385.0,97383.0,0.051361]
[1734791141062,0.3608,97385.0,97379.0,0.0484]
[1734791141359,0.051363,97381.0,97379.0,0.0484]
[1734791142762,0.051363,97381.0,97379.0,0.23065503]
[1734791143660,0.051363,97381.0,97379.0,0.28301803]
[1734791144363,0.051363,97381.0,97379.0,0.23165503]
[1734791144562,0.051363,97381.0,97380.0,0.18225503]
[1734791146355,0.051363,97381.0,97380.0,0.23361803]
[1734791146556,0.051363,97381.0,97380.0,0.23461803]
[1734791147453,0.051363,97381.0,97380.0,0.051363]
[1734791148462,0.051363,97381.0,97380.0,0.052363]
[1734791149371,0.0631841,97381.0,97380.0,0.052363]
[1734791150669,0.0631841,97381.0,97380.0,0.051363]
[1734791151170,0.07164347,97381.0,97380.0,0.051363]
[1734791151466,0.02028047,97381.0,97380.0,0.051363]
[1734791151665,0.12274529,97390.0,97384.0,0.051361]
[1734791151968,8.24e-05,97403.0,97384.0,0.051361]
[1734791151969,8.24e-05,97403.0,97389.0,0.772958]
[1734791152166,8.24e-05,97403.0,97402.0,0.051351]
[1734791152366,0.21447449,97419.0,97402.0,0.051351]
[1734791152367,0.21447449,97419.0,97418.0,0.051343]
[1734791152670,0.21447449,97419.0,97418.0,0.772943]
[1734791153064,0.0515,97432.0,97418.0,0.7216]
[1734791153369,0.0515,97432.0,97428.0,0.3608]
[1734791153667,0.0515,97432.0,97431.0,0.051336]
[1734791153865,0.21447449,97434.0,97433.0,0.051335]
[1734791154369,0.21447449,97434.0,97428.0,0.3608]
[1734791154370,0.01048418,97438.0,97437.0,0.051333]
[1734791154669,0.05133,97443.0,97437.0,0.051333]
[1734791155271,0.37100432,97441.0,97437.0,0.051333]
[1734791156063,0.37100432,97441.0,97432.0,0.18337517]
[1734791156267,0.051334,97434.0,97432.0,0.23471017]
[1734791156457,0.07053532,97441.0,97433.0,0.051335]
[1734791156661,0.07053532,97441.0,97430.0,0.0474]
[1734791156861,0.015,97441.0,97440.0,0.051331]
[1734791158466,0.015,97441.0,97440.0,0.06135352]
[1734791159468,0.007,97441.0,97440.0,0.06135352]
[1734791159664,0.051323,97456.0,97451.0,0.051325]
[1734791159971,0.0507,97460.0,97457.0,0.051322]
[1734791161266,0.0507,97460.0,97449.0,0.3608]
[1734791161469,0.06117539,97460.0,97458.0,0.051321]
[1734791161863,0.06217539,97460.0,97458.0,0.051321]
[1734791162069,0.06317539,97460.0,97458.0,0.051321]
[1734791162565,0.06217539,97460.0,97458.0,0.051321]
[1734791162769,0.06417539,97460.0,97458.0,0.051321]
[1734791163471,0.051323,97456.0,97450.0,0.051325]
[1734791163869,0.06417539,97460.0,97449.0,0.3608]
[1734791164072,0.06417539,97460.0,97436.0,0.3608]
[1734791164073,0.3608,97453.0,97436.0,0.3608]
[1734791164264,0.051335,97433.0,97431.0,0.18449517]
[1734791164567,0.051335,97433.0,97431.0,0.18337517]
[1734791164764,0.049,97432.0,97431.0,0.18337517]
[1734791164965,0.051336,97431.0,97424.0,0.051339]
[1734791165170,0.051337,97429.0,97424.0,0.051339]
[1734791165963,0.049,97432.0,97431.0,0.051336]
[1734791166675,0.05,97432.0,97431.0,0.056336]
[1734791167067,0.05,97432.0,97431.0,0.005]
[1734791167272,0.051336,97431.0,97426.0,0.3608]
[1734791167784,0.049,97432.0,97429.0,0.051337]
[1734791168465,0.049,97432.0,97430.0,0.051336]
[1734791168676,0.05,97432.0,97431.0,0.001]
[1734791169068,0.049,97432.0,97430.0,0.051336]
[1734791169271,0.05,97432.0,97430.0,0.051336]
[1734791169462,0.001,97431.0,97430.0,0.051336]
[1734791170481,0.05,97432.0,97430.0,0.055336]
[1734791171072,0.101335,97432.0,97430.0,0.004]
[1734791171870,0.101335,97432.0,97430.0,0.005]
[1734791174276,0.05,97432.0,97430.0,0.005]
[1734791174477,0.05,97432.0,97430.0,0.056336]
[1734791174684,0.001,97432.0,97430.0,0.056336]
[1734791177777,0.052336,97432.0,97430.0,0.005]
[1734791177987,0.0493,97431.0,97430.0,0.005]
[1734791179470,0.051341,97422.0,97421.0,0.18337517]
[1734791179673,0.42048003,97422.0,97421.0,0.02897517]
[1734791179868,0.051343,97417.0,97416.0,0.08902058]
[1734791180068,0.051345,97413.0,97412.0,0.30562529]
[1734791180283,0.05970661,97413.0,97412.0,0.30562529]
[1734791180981,0.051345,97413.0,97412.0,0.30562529]
[1734791181681,0.051354,97396.0,97395.0,0.00112]
[1734791181878,0.05136,97387.0,97385.0,0.3608]
[1734791183272,0.001,97387.0,97371.0,0.0499404]
[1734791183475,0.051367,97372.0,97371.0,0.0499404]
[1734791184183,0.412167,97372.0,97371.0,0.0484]
[1734791184370,0.42052238,97372.0,97371.0,0.0484]
[1734791184775,0.42052238,97372.0,97359.0,0.051374]
[1734791184776,0.05137,97366.0,97359.0,0.051374]
[1734791184977,0.05137,97366.0,97356.0,0.36141748]
[1734791185475,0.05137,97366.0,97347.0,0.0498]
[1734791185675,0.37188777,97372.0,97351.0,0.01020885]
[1734791185877,0.051369,97368.0,97362.0,0.051372]
[1734791186081,0.051369,97368.0,97351.0,0.01020885]
[1734791186082,0.00152001,97372.0,97371.0,0.051367]
[1734791186273,0.051361,97383.0,97364.0,0.36093084]
[1734791186473,0.051361,97383.0,97376.0,0.3608]
[1734791186777,0.051361,97383.0,97377.0,0.0498]
[1734791186973,0.01018526,97383.0,97377.0,0.0498]
[1734791187175,0.3608,97388.0,97377.0,0.0498]
[1734791188085,0.051364,97379.0,97377.0,0.0498]
[1734791188584,0.051364,97379.0,97377.0,0.0528]
[1734791188784,0.051364,97379.0,97377.0,0.0538]
[1734791189286,0.051364,97379.0,97377.0,0.0508]
[1734791189487,0.052364,97379.0,97377.0,0.0538]
[1734791191488,0.052364,97379.0,97377.0,0.0528]
[1734791191896,0.3608,97388.0,97377.0,0.0528]
[1734791192193,0.3608,97388.0,97378.0,0.051364]
[1734791192194,0.001,97379.0,97378.0,0.051364]
[1734791192384,0.3608,97388.0,97384.0,0.05136]
[1734791192588,0.3608,97388.0,97377.0,0.0518]
[1734791192790,0.2836,97388.0,97385.0,0.05136]
[1734791192989,0.2836,97388.0,97380.0,0.3608]
[1734791192990,0.01024269,97394.0,97380.0,0.3608]
[1734791193195,0.051355,97395.0,97381.0,0.051362]
[1734791193383,0.051355,97395.0,97387.0,0.051359]
[1734791193892,0.001,97388.0,97387.0,0.051359]
[1734791194791,0.004,97395.0,97380.0,0.3608]
[1734791194985,0.412147,97409.0,97394.0,0.3608]
[1734791195289,0.412147,97409.0,97401.0,0.051351]
[1734791195790,0.412147,97409.0,97402.0,0.0487]
[1734791196188,0.051345,97415.0,97407.0,0.051348]
[1734791196387,0.005,97409.0,97407.0,0.051348]
[1734791196986,0.004,97409.0,97407.0,0.051348]
[1734791197289,0.006,97409.0,97407.0,0.051348]
[1734791197788,0.004,97409.0,97407.0,0.051348]
[1734791197993,0.004,97409.0,97407.0,0.052348]
[1734791198186,0.055348,97409.0,97408.0,0.0481]
[1734791198387,0.051348,97409.0,97408.0,0.0481]
[1734791198592,0.057348,97409.0,97408.0,0.0481]
[1734791198990,0.051348,97409.0,97408.0,0.0481]
[1734791199194,0.052348,97409.0,97408.0,0.0481]
[1734791199697,0.051348,97409.0,97408.0,0.0511]
[1734791200089,0.051348,97409.0,97408.0,0.0491]
[1734791200294,0.051348,97409.0,97408.0,0.0521]
[1734791200490,0.051348,97409.0,97408.0,0.004]
[1734791200685,0.05967106,97409.0,97408.0,0.004]
[1734791200999,0.05136,97385.0,97383.0,0.3608]
[1734791201503,0.10054912,97393.0,97382.0,0.0499]
[1734791201795,0.051361,97383.0,97382.0,0.0499]
[1734791202798,0.052361,97383.0,97382.0,0.0499]
[1734791204000,0.053361,97383.0,97382.0,0.0549]
[1734791204588,0.002,97383.0,97382.0,0.0549]
[1734791204895,0.00834734,97399.0,97395.0,0.051355]
[1734791205100,0.25385503,97410.0,97395.0,0.051355]
[1734791205101,0.00835968,97409.0,97395.0,0.051355]
[1734791205299,0.00835968,97409.0,97387.0,0.3608]
[1734791205300,0.051357,97392.0,97387.0,0.412159]
[1734791205602,0.10054912,97400.0,97387.0,0.3608]
[1734791205896,0.051355,97396.0,97393.0,0.051355]
[1734791206503,0.051355,97396.0,97395.0,0.003]
[1734791206695,0.00835968,97399.0,97395.0,0.003]
[1734791206894,0.00835968,97399.0,97397.0,0.051354]
[1734791207097,0.00835968,97401.0,97398.0,0.051353]
[1734791207300,0.00835968,97400.0,97398.0,0.051353]
[1734791207495,0.00835968,97399.0,97398.0,0.051353]
[1734791207706,0.051351,97402.0,97398.0,0.051353]
[1734791207707,0.00835968,97401.0,97398.0,0.051353]
[1734791207896,0.00835968,97400.0,97398.0,0.051353]
[1734791208092,0.00838271,97401.0,97399.0,0.051352]
[1734791208304,0.00838271,97400.0,97399.0,0.051352]
[1734791209194,0.00838271,97400.0,97399.0,0.052352]
[1734791209696,0.00938271,97400.0,97399.0,0.052352]
[1734791210121,0.00938271,97400.0,97399.0,0.054352]
[1734791214909,0.0093964,97400.0,97399.0,0.054352]
[1734791215300,0.00939839,97400.0,97399.0,0.054352]
[1734791215502,0.37019839,97400.0,97399.0,0.003]
[1734791215903,0.38201621,97400.0,97399.0,0.003]
[1734791216101,0.43051621,97400.0,97399.0,0.003]
[1734791217704,0.43050294,97400.0,97399.0,0.003]
[1734791218310,0.73050294,97400.0,97382.0,0.0499]
[1734791218503,0.051361,97383.0,97382.0,0.0499]
[1734791218706,0.05974612,97383.0,97382.0,0.0499]
[1734791219405,0.05974612,97383.0,97382.0,0.0559]
[1734791220203,0.06074612,97383.0,97382.0,0.0559]
[1734791220800,0.06174612,97383.0,97382.0,0.0559]
[1734791221716,0.051366,97374.0,97365.0,0.36208]
[1734791221915,0.05975112,97374.0,97366.0,0.0457]
[1734791222112,0.05137,97367.0,97366.0,0.0457]
[1734791222313,0.05975512,97367.0,97366.0,0.0457]
[1734791222611,0.05975247,97367.0,97366.0,0.0457]
[1734791223004,0.05975243,97367.0,97366.0,0.0457]
[1734791223814,0.001,97374.0,97366.0,0.0457]
[1734791224113,0.01181782,97378.0,97366.0,0.0457]
[1734791224312,0.15357127,97383.0,97382.0,0.051362]
[1734791224520,0.07797127,97383.0,97382.0,0.051362]
[1734791225606,0.07897127,97383.0,97382.0,0.051362]
[1734791225810,0.001,97383.0,97382.0,0.051362]
[1734791226418,0.051363,97379.0,97376.0,0.3608]
[1734791226608,0.051363,97379.0,97376.0,0.412165]
[1734791227322,0.051363,97379.0,97377.0,0.051364]
[1734791227519,0.052363,97379.0,97377.0,0.051364]
[1734791227715,0.001,97379.0,97377.0,0.051364]
[1734791228112,0.002,97379.0,97377.0,0.051364]
[1734791238714,0.00154075,97394.0,97392.0,0.051356]
[1734791238920,0.00154075,97394.0,97393.0,0.4526]
[1734791240021,0.00988044,97394.0,97393.0,0.4526]
[1734791241016,0.01088044,97394.0,97393.0,0.4526]
[1734791241418,0.00988044,97394.0,97393.0,0.4536]
[1734791241726,0.00833969,97394.0,97393.0,0.4546]
[1734791241921,0.12275582,97404.0,97393.0,0.4546]
[1734791242227,0.12275582,97404.0,97403.0,0.3608]
[1734791242418,0.051351,97403.0,97402.0,0.051351]
[1734791242721,0.05969468,97403.0,97402.0,0.051351]
[1734791243425,0.00834368,97403.0,97402.0,0.412151]
[1734791244327,0.00934368,97403.0,97402.0,0.412151]
[1734791244531,0.00934528,97403.0,97402.0,0.412151]
[1734791246330,0.001,97403.0,97402.0,0.412151]
[1734791247230,0.00934546,97403.0,97402.0,0.412151]
[1734791248029,0.00935375,97403.0,97402.0,0.412151]
[1734791249028,0.00835375,97403.0,97402.0,0.412151]
[1734791249229,0.12110957,97409.0,97408.0,0.051348]
[1734791249532,0.18313981,97420.0,97419.0,0.051342]